Workbook

Sheet Deelname weekend
A1: Hotel Heikenberg | B1: Gaat mee | C1: Aantal | D1: Kamer | E1: Kind | F1: Voorschot | G1: Bonus | H1: Betaald | I1: Te Ontvangen | J1: Niet mee | K1: Cash | M1: Motoren | N1: Auto | O1: Kamer prijs | P1: Nog te betalen | Q1: Gemeld | R1: Afgemeld
A2: Hans Ophof | B2: J | C2: 1 | D2: EZ | F2: € 50.00 | H2: € 205.00 | I2: =IF(AND(B2="J",((H2+F2)-(Deelnemers*$O2+E2*$M$45))>0),(Deelnemers*$O2+E2*$M$45),(Deelnemers-G2)*$O2-(H2+F2)+E2*$M$45) -> 0 | J2: =IF(B2="N",1,0) -> 0 | L2: =COUNTIF(K2,"cash")*Deelnemers -> 0 | M2: 1 | O2: =IF(D2=$M$41,$M$43,IF(D2=$N$41,$N$43,IF(D2=$O$41,$O$43,IF(D2=$P$41,$P$43,IF(D2=$Q$41,$Q$43,0))))) -> € 255.00 | P2: =IF(H2="",I2,IF(H2+F2=(O2*C2),"",(O2*C2-H2-F2))) ->  | R2: Jack Keijsers
A3: Eric & Wietske Kuipers | B3: J | C3: 2 | D3: DZ | F3: € 100.00 | H3: € 340.00 | I3: 0 | J3: =IF(B3="N",1,0) -> 0 | L3: =COUNTIF(K3,"cash")*Deelnemers -> 0 | M3: 1 | N3: 1 | O3: € 220.00 | R3: Richard Alsem
A4: Toon & Els Trouwen | B4: J | C4: 2 | D4: DZ | F4: € 100.00 | H4: € 340.00 | I4: 0 | J4: 0 | L4: 0 | M4: 1 | N4: 1 | O4: € 220.00 | R4: Dick Willemsen
A5: Wan & Dian Merks | B5: J | C5: 2 | D5: DZ | F5: € 100.00 | H5: € 340.00 | I5: 0 | J5: =IF(B5="N",1,0) -> 0 | L5: =COUNTIF(K5,"cash")*Deelnemers -> 0 | M5: 1 | N5: 1 | O5: € 220.00 | R5: Rinus Willemsen
A6: Frans & Brigitte Smulders | B6: J | C6: 2 | D6: DZ | F6: € 100.00 | H6: € 340.00 | I6: 0 | J6: 0 | L6: 0 | M6: 1 | O6: € 220.00 | R6: Eric van Meensel
A7: Femke Smulders & Patrick van Lierop & Joep | B7: J | C7: 2 | D7: DZ | F7: € 100.00 | H7: € 340.00 | I7: 0 | J7: 0 | L7: =COUNTIF(K7,"cash")*Deelnemers -> 0 | M7: 1 | N7: 1 | O7: € 220.00 | R7: Hans Adriaans
A8: Theo van den Broek | B8: J | C8: 1 | D8: DZ | F8: € 50.00 | H8: € 170.00 | I8: 0 | J8: =IF(B8="N",1,0) -> 0 | L8: =COUNTIF(K8,"cash")*Deelnemers -> 0 | M8: 1 | O8: € 220.00 | R8: Jos Leuwerink
A9: Jean-Pierre van Daal | B9: J | C9: 1 | D9: DZ | F9: € 50.00 | H9: € 170.00 | I9: 0 | J9: 0 | L9: 0 | M9: 1 | O9: € 220.00 | R9: Carolien van den Biggelaar
A10: Erik Bekkers | B10: J | C10: 1 | D10: DZ | F10: € 50.00 | H10: € 170.00 | I10: 0 | J10: 0 | L10: 0 | M10: 1 | O10: € 220.00 | R10: Piet Hendrikx
A11: Peter & Jozee van Zeeland | B11: J | C11: 2 | D11: DZ | F11: € 100.00 | H11: € 340.00 | I11: 0 | J11: 0 | L11: 0 | M11: 1 | N11: 1 | O11: € 220.00 | R11: Gilbert Claessen
A12: Ivo Treverlo | B12: J | C12: 1 | D12: DZ | F12: € 50.00 | H12: € 170.00 | I12: 0 | J12: 0 | L12: 0 | M12: 1 | O12: € 220.00
A13: Heinz Kessels | B13: J | C13: 1 | D13: EZ | F13: € 50.00 | H13: € 205.00 | I13: 0 | J13: 0 | L13: 0 | M13: 1 | O13: € 255.00
A14: Jos Soetens | B14: J | C14: 1 | D14: DZ | F14: € 50.00 | H14: € 170.00 | I14: 0 | J14: =IF(B14="N",1,0) -> 0 | L14: =COUNTIF(K14,"cash")*Deelnemers -> 0 | M14: 1 | O14: € 220.00
A15: Dennis Soetens | B15: J | C15: 1 | D15: DZ | F15: € 50.00 | H15: € 170.00 | I15: 0 | J15: =IF(B15="N",1,0) -> 0 | L15: =COUNTIF(K15,"cash")*Deelnemers -> 0 | M15: 1 | O15: € 220.00
A16: Wil & Nollie Langenberg | B16: J | C16: 2 | D16: DZ | F16: € 100.00 | H16: € 340.00 | I16: 0 | J16: 0 | L16: 0 | M16: 1 | O16: € 220.00
A17: Wlly & Marion Schuurmans | B17: J | C17: 2 | D17: DZ | F17: € 100.00 | H17: € 340.00 | I17: 0 | J17: 0 | L17: 0 | M17: 1 | O17: € 220.00
A18: Bram & Angelique van Abeelen | B18: J | C18: 2 | D18: App | E18: 2 | F18: € 100.00 | H18: € 530.00 | I18: 0 | J18: 0 | L18: 0 | M18: 1 | O18: € 210.00 | P18: € -210.00
A19: Martien van Abeelen | B19: J | C19: 1 | D19: EZ | F19: € 50.00 | H19: € 205.00 | I19: 0 | J19: 0 | L19: 0 | M19: 1 | O19: € 255.00
A20: Thomas van Gerwen | B20: J | C20: 1 | D20: EZ | F20: € 50.00 | H20: € 205.00 | I20: 0 | J20: 0 | L20: 0 | M20: 1 | O20: € 255.00
A21: Jo Sieben | B21: J | C21: 1 | D21: DZ | F21: € 50.00 | H21: € 170.00 | I21: 0 | J21: 0 | L21: 0 | M21: 1 | O21: € 220.00
A22: Ronnie van der Heijden | B22: J | C22: 1 | D22: EZ | F22: € 50.00 | H22: € 205.00 | I22: 0 | J22: =IF(B22="N",1,0) -> 0 | L22: =COUNTIF(K22,"cash")*Deelnemers -> 0 | M22: 1 | O22: € 255.00
A23: Marc Verbaten | B23: J | C23: 1 | D23: DZ | F23: € 50.00 | H23: € 170.00 | I23: 0 | J23: 0 | L23: 0 | M23: 1 | O23: € 220.00 | P23: =IF(H23="",I23,IF(H23+F23=(O23*C23),"",(O23*C23-H23-F23))) -> 
A24: Onno & Sandra Kruik-Geenen | B24: J | C24: 2 | D24: DZ | F24: € 100.00 | H24: € 340.00 | I24: 0 | J24: 0 | L24: 0 | M24: 2 | O24: € 220.00 | P24: =IF(H24="",I24,IF(H24+F24=(O24*C24),"",(O24*C24-H24-F24))) -> 
A25: Piet van Zeeland | B25: J | C25: 1 | D25: DZ | F25: € 50.00 | H25: € 170.00 | I25: 0 | J25: 0 | L25: 0 | M25: 1 | O25: € 220.00
A26: Gert-Jan Robeerst | B26: J | C26: 1 | D26: DZ | F26: € 50.00 | H26: € 170.00 | I26: 0 | J26: 0 | L26: 0 | M26: 1 | O26: € 220.00
A27: Wil van de Weiden | B27: J | C27: 1 | D27: EZ | H27: € 255.00 | I27: 0 | J27: 0 | L27: 0 | M27: 1 | O27: € 255.00
I28: 0 | J28: 0 | L28: 0 | O28: 0 | P28: 0
I29: 0 | J29: 0 | L29: 0 | O29: 0 | P29: 0
I30: 0 | J30: 0 | L30: =COUNTIF(K30,"cash")*Deelnemers -> 0 | O30: 0 | P30: 0
I31: 0 | J31: 0 | L31: 0 | O31: 0 | P31: 0
I32: 0 | J32: =IF(B32="N",1,0) -> 0 | L32: =COUNTIF(K32,"cash")*Deelnemers -> 0 | O32: 0 | P32: 0
I33: 0 | J33: 0 | L33: 0 | O33: 0 | P33: 0
I34: 0 | J34: 0 | L34: 0 | O34: 0 | P34: 0
I35: 0 | J35: 0 | L35: 0 | O35: 0 | P35: 0
I36: 0 | J36: 0 | L36: 0 | O36: 0 | P36: 0
F37: Lege cellen
F38: =COUNTBLANK(Voorschot) -> 10 | H38: =SUM(Betaald)/M43 -> 30 | M38: =SUM(Motoren) -> 27 | N38: =SUM(Auto) -> 5
M41: DZ | N41: EZ | O41: FZ | P41: App | Q41: 3BZ
M42: =COUNTIF(Kamer,M$41) -> 19 | N42: =COUNTIF(Kamer,N$41) -> 6 | O42: =COUNTIF(Kamer,O$41) -> 0 | P42: =COUNTIF(Kamer,P$41) -> 1 | Q42: =COUNTIF(Kamer,Q$41) -> 0
A43: Datum: | B43: 18+19+20+21 mei 2023 | H43: Kosten per persoon: | M43: € 220.00 | N43: € 255.00 | P43: € 210.00
H45: Kindertoeslag | M45: =50%*P43 -> € 105.00
A46: Ontvangen: | B46: =SUM(Betaald)+SUM(Voorschot) -> € 8,320.00 | H46: Toeristenbelasting p.p.p.n. | M46: 0
A47: Nog te ontvangen cash: | B47: =J49 -> 0 | H47: Aantal betaald totaal:
A48: Nog te ontvangen per bank: | B48: =SUM(Te_ontvangen) -> 0 | H48: Nog te betalen: | M48: =SUM(Nog_te_betalen) -> € -210.00
A49: Er gaan mee: | B49: =SUM(Deelnemers) -> 36 | C49: =SUM(Kind) -> 2 | H49: Aantal betaald voorschot: | M49: =SUM(Voorschot)/B51 -> 35
A50: Zeker niet: | B50: =SUM(J2:J36) -> 0 | I50: Update: | J50: 2023-05-12
A51: Voorschot bedrag | B51: € 50.00 | C51: pp
A52: Aanbetaling 1: | B52: 0 | H52: Voor rekening Motocaths | M52: ='Kamer bezetting'!H36-'Deelname weekend'!B46-SUM(B52:B53) -> € -8,320.00 | N52: MBBQ
A53: Aanbetaling 2: | B53: 0 | M53: ='Kamer bezetting'!H35-'Deelname weekend'!B46-SUM(B52:B53) -> € -8,320.00 | N53: ZBBQ
A54: Grote garage: | B54: 0
A55: Garage box: | B55: 0 | C55: pst | H55: DZ | I55: 2 persoonskamer | N55: € 208.00 | O55: =N55+(3*$B$57) -> € 215.50
A56: BBQ: | B56: 0 | C56: pp | H56: EZ | I56: 1 persoonskamer | N56: € 242.00 | O56: =N56+(3*$B$57) -> € 249.50
A57: Kurtax: | B57: € 2.50 | C57: pp/pd | H57: FZ | I57: Familiekamer
H58: App | I58: Appartement | N58: € 592.00 | O58: =N58+(6*B57) -> € 607.00
A59: Mail 1 verzonden: | H59: 3BZ | I59: 3 persoonskamer
A60: Mail 2 verzonden:
A62: Betalingsverzoek voorschot:
A67: Vrije plaatsen (U+Frü): | C67: € 160.00
A68: >15 personen | B68: 0.5 | C68: =C67*B68 -> € 80.00
A69: >20 personen | B69: 1 | C69: =C67*B69 -> € 160.00
A70: >30 personen | B70: 1.5 | C70: =C67*B70 -> € 240.00

Sheet Groepsindeling
A1: Groep: Wil Langenberg | C1: Groep: Erik Kuijpers | E1: Groep: Frans Smulders | G1: Groep:
A2: Theo van den Broek | C2: Peter & Jozee van Zeeland | E2: Femke Smulders & Patrick van Lierop & Joep
A3: Jean-Pierre van Daal | C3: Martien van Abeelen | E3: Bram & Angelique van Abeelen
A4: Jos Soetens | C4: Thomas van Gerwen | E4: Wan & Dian Merks
A5: Dennis Soetens | C5: Wil van de Weiden
A6: Jo Sieben
A11: 6 | B11: Motoren | C11: 6 | D11: Motoren | E11: 3 | F11: Motoren | H11: Motoren
A13: Groep: Toon Trouwen | C13: Groep: Willy Schuurmans | E13: Groep:
A14: Marc Verbaten | C14: Hans Ophof
A15: Ronnie van der Heijden | C15: Heinz Kessels
A16: Erik Bekkers | C16: Onno & Sandra Kruik-Geenen
A17: Piet van Zeeland | C17: Gert-Jan Robeerst
A18: Ivo Treverlo
A23: 6 | B23: Motoren | C23: 6 | D23: Motoren | F23: Motoren
B25: Totaal: | C25: =SUM(A11+C11+E11+G11+A23+C23+E23) -> 27 | D25: =IF(C25='Deelname weekend'!M38,"Oké","Fout") -> Oké
B27: Autovervoer:
M44: 239 | N44: 259
J51: 2021-10-12

Sheet Kamer bezetting
A1: Naam | B1: Naam | C1: Naam | D1: Kamer | E1: Nr | H1: Kamers | I1: Nachten
A2: ='Deelname weekend'!A2 -> Hans Ophof | D2: EZ | G2: DZ | H2: =COUNTIF($D$2:$D$30,$G2) -> 14 | I2: =3*H2*2 -> 84
A3: ='Deelname weekend'!A13 -> Heinz Kessels | D3: EZ | G3: EZ | H3: =COUNTIF($D$2:$D$30,$G3) -> 6 | I3: =3*H3 -> 18
A4: ='Deelname weekend'!A19 -> Martien van Abeelen | D4: EZ | G4: App | H4: 1 | I4: =3*H4*3 -> 9
A5: ='Deelname weekend'!A20 -> Thomas van Gerwen | D5: EZ | G5: FZ | H5: 0 | I5: =3*H5*4 -> 0
A6: ='Deelname weekend'!A22 -> Ronnie van der Heijden | D6: EZ
A7: Wil van de Weiden | D7: EZ
A8: ='Deelname weekend'!A3 -> Eric & Wietske Kuipers | D8: DZ
A9: ='Deelname weekend'!A4 -> Toon & Els Trouwen | D9: DZ
A10: ='Deelname weekend'!A5 -> Wan & Dian Merks | D10: DZ
A11: ='Deelname weekend'!A6 -> Frans & Brigitte Smulders | D11: DZ
A12: ='Deelname weekend'!A7 -> Femke Smulders & Patrick van Lierop & Joep | C12: Kinderbett dazu | D12: DZ
A13: ='Deelname weekend'!A11 -> Peter & Jozee van Zeeland | D13: DZ
A14: ='Deelname weekend'!A16 -> Wil & Nollie Langenberg | D14: DZ | J14: Korting
A15: ='Deelname weekend'!A17 -> Wlly & Marion Schuurmans | D15: DZ
A16: ='Deelname weekend'!A24 -> Onno & Sandra Kruik-Geenen | D16: DZ
A17: ='Deelname weekend'!A8 -> Theo van den Broek | B17: ='Deelname weekend'!A9 -> Jean-Pierre van Daal | D17: DZ
A18: ='Deelname weekend'!A23 -> Marc Verbaten | B18: ='Deelname weekend'!A10 -> Erik Bekkers | D18: DZ
A19: ='Deelname weekend'!A14 -> Jos Soetens | B19: ='Deelname weekend'!A15 -> Dennis Soetens | D19: DZ
A20: ='Deelname weekend'!A21 -> Jo Sieben | B20: ='Deelname weekend'!A26 -> Gert-Jan Robeerst | D20: DZ
A21: ='Deelname weekend'!A12 -> Ivo Treverlo | B21: Piet van Zeeland | D21: DZ
A22: ='Deelname weekend'!A18 -> Bram & Angelique van Abeelen | B22: mit 2 Kinder | D22: App
B58: 26+27+28+29 mei 2022 | M58: 239 | N58: 259
J65: 2021-10-12
